[Event "Titled Tuesday Blitz September 27 Late 2022"]
[White "Melkumyan, Hrant"]
[Black "Timmermans, Mark"]
[WhiteFideId "13302485"]
[BlackFideId "1026399"]
[WhiteElo "2604"]
[BlackElo "2460"]
[Result "1-0"]
[Round "08"]
[TimeControl "180+1"]
[Date "2022.09.27"]
[WhiteClock "0:00:05"]
[BlackClock "0:00:07"]

1. Nf3 {[%clk 0:03:00]}  Nf6 {[%clk 0:02:59]} 2. c4 {[%clk 0:03:01]}  e6 {[%clk 0:02:58]} 3. Nc3 {[%clk 0:03:02]}  d5 {[%clk 0:02:59]} 4. e3 {[%clk 0:03:02]}  Be7 {[%clk 0:02:57]} 5. b3 {[%clk 0:03:01]}  O-O {[%clk 0:02:56]} 6. Bb2 {[%clk 0:03:02]}  b6 {[%clk 0:02:55]} 7. g3 {[%clk 0:03:01]}  Bb7 {[%clk 0:02:55]} 8. Bg2 {[%clk 0:03:01]}  Nbd7 {[%clk 0:02:50]} 9. O-O {[%clk 0:03:01]}  dxc4 {[%clk 0:02:49]} 10. bxc4 {[%clk 0:03:01]}  c5 {[%clk 0:02:50]} 11. Qe2 {[%clk 0:02:59]}  Rc8 {[%clk 0:02:44]} 12. a4 {[%clk 0:02:59]}  a5 {[%clk 0:02:37]} 13. Rab1 {[%clk 0:02:48]}  Nb8 {[%clk 0:02:36]} 14. Rfd1 {[%clk 0:02:41]}  Na6 {[%clk 0:02:35]} 15. d4 {[%clk 0:02:38]}  cxd4 {[%clk 0:02:33]} 16. exd4 {[%clk 0:02:39]}  Bb4 {[%clk 0:02:32]} 17. Nb5 {[%clk 0:02:36]}  Be4 {[%clk 0:02:28]} 18. Rbc1 {[%clk 0:02:36]}  Qe7 {[%clk 0:02:24]} 19. Bh3 {[%clk 0:02:14]}  Rfd8 {[%clk 0:02:11]} 20. Ng5 {[%clk 0:02:12]}  Ba8 {[%clk 0:02:10]} 21. d5 {[%clk 0:02:02]}  Nc5 {[%clk 0:01:44]} 22. Bg2 {[%clk 0:01:39]}  h6 {[%clk 0:01:33]} 23. d6 {[%clk 0:01:35]}  Qf8 {[%clk 0:01:28]} 24. Bxf6 {[%clk 0:01:23]}  gxf6 {[%clk 0:01:29]} 25. Ne4 {[%clk 0:01:17]}  Bxe4 {[%clk 0:01:26]} 26. Bxe4 {[%clk 0:01:18]}  Nxe4 {[%clk 0:01:13]} 27. Qxe4 {[%clk 0:01:18]}  Bxd6 {[%clk 0:01:13]} 28. Qg4+ {[%clk 0:00:40]}  Kh7 {[%clk 0:01:09]} 29. Qh5 {[%clk 0:00:23]}  Be5 {[%clk 0:00:57]} 30. Rb1 {[%clk 0:00:13]}  f5 {[%clk 0:00:54]} 31. Na7 {[%clk 0:00:12]}  Rxd1+ {[%clk 0:00:51]} 32. Rxd1 {[%clk 0:00:12]}  Rxc4 {[%clk 0:00:42]} 33. Nb5 {[%clk 0:00:13]}  Bg7 {[%clk 0:00:37]} 34. Rd7 {[%clk 0:00:07]}  Kg8 {[%clk 0:00:23]} 35. Nd6 {[%clk 0:00:04]}  Rc1+ {[%clk 0:00:23]} 36. Kg2 {[%clk 0:00:04]}  Qa8+ {[%clk 0:00:23]} 37. Kh3 {[%clk 0:00:05]}  Qf8 {[%clk 0:00:17]} 38. Nxf7 {[%clk 0:00:04]}  Rc8 {[%clk 0:00:08]} 39. Qg6 {[%clk 0:00:04]}  Re8 {[%clk 0:00:07]} 40. Nxh6+ {[%clk 0:00:05]}  Kh8 {[%clk 0:00:08]} 41. Nf7+ {[%clk 0:00:05]}  Kg8 {[%clk 0:00:08]} 42. Ng5 {[%clk 0:00:06]}  Qf6 {[%clk 0:00:07]} 43. Qxe8+ {[%clk 0:00:05]}  Bf8 {[%clk 0:00:07]} 44. Qxe6+ {[%clk 0:00:05]} 1-0


[Site "https://www.chess.com"]

[Event "Titled Tuesday Blitz September 27 Late 2022"]
[White "Nakamura, Hikaru"]
[Black "Bortnyk, Mykola"]
[WhiteFideId "2016192"]
[BlackFideId "14120836"]
[WhiteElo "2850"]
[BlackElo "2582"]
[Result "1-0"]
[Round "08"]
[TimeControl "180+1"]
[Date "2022.09.27"]
[WhiteClock "0:01:18"]
[BlackClock "0:00:40"]

1. Nf3 {[%clk 0:03:00]}  Nf6 {[%clk 0:02:58]} 2. g3 {[%clk 0:03:00]}  d5 {[%clk 0:02:57]} 3. Bg2 {[%clk 0:03:01]}  g6 {[%clk 0:02:58]} 4. d3 {[%clk 0:03:00]}  Bg7 {[%clk 0:02:56]} 5. Bd2 {[%clk 0:03:00]}  O-O {[%clk 0:02:49]} 6. Qc1 {[%clk 0:03:00]}  Re8 {[%clk 0:02:50]} 7. Bh6 {[%clk 0:02:59]}  Bh8 {[%clk 0:02:50]} 8. c4 {[%clk 0:02:57]}  c6 {[%clk 0:02:46]} 9. O-O {[%clk 0:02:57]}  e5 {[%clk 0:02:38]} 10. Bg5 {[%clk 0:02:54]}  Qd6 {[%clk 0:02:33]} 11. cxd5 {[%clk 0:02:51]}  cxd5 {[%clk 0:02:33]} 12. Nc3 {[%clk 0:02:51]}  Bd7 {[%clk 0:02:24]} 13. Nd2 {[%clk 0:02:45]}  Bc6 {[%clk 0:02:22]} 14. e4 {[%clk 0:02:42]}  d4 {[%clk 0:02:18]} 15. Nc4 {[%clk 0:02:37]}  Qe6 {[%clk 0:02:11]} 16. Ne2 {[%clk 0:02:13]}  Nbd7 {[%clk 0:02:04]} 17. f4 {[%clk 0:02:13]}  Bb5 {[%clk 0:01:38]} 18. b3 {[%clk 0:02:00]}  Rac8 {[%clk 0:01:31]} 19. Qd2 {[%clk 0:01:52]}  Bxc4 {[%clk 0:01:28]} 20. bxc4 {[%clk 0:01:53]}  Ng4 {[%clk 0:01:25]} 21. f5 {[%clk 0:01:47]}  Qc6 {[%clk 0:01:17]} 22. Bh3 {[%clk 0:01:43]}  Ne3 {[%clk 0:01:11]} 23. fxg6 {[%clk 0:01:35]}  hxg6 {[%clk 0:01:01]} 24. Bxe3 {[%clk 0:01:34]}  dxe3 {[%clk 0:01:02]} 25. Qxe3 {[%clk 0:01:35]}  Qc5 {[%clk 0:01:03]} 26. Qxc5 {[%clk 0:01:34]}  Nxc5 {[%clk 0:01:04]} 27. Bxc8 {[%clk 0:01:34]}  Rxc8 {[%clk 0:01:04]} 28. Rad1 {[%clk 0:01:33]}  Rd8 {[%clk 0:01:05]} 29. Nc3 {[%clk 0:01:33]}  Rxd3 {[%clk 0:00:55]} 30. Rxd3 {[%clk 0:01:31]}  Nxd3 {[%clk 0:00:56]} 31. Rd1 {[%clk 0:01:31]}  Nc5 {[%clk 0:00:54]} 32. Rd8+ {[%clk 0:01:31]}  Kg7 {[%clk 0:00:54]} 33. Rc8 {[%clk 0:01:27]}  b6 {[%clk 0:00:54]} 34. Kf2 {[%clk 0:01:26]}  Kh7 {[%clk 0:00:54]} 35. Rc7 {[%clk 0:01:25]}  Kg8 {[%clk 0:00:50]} 36. Rxa7 {[%clk 0:01:24]}  f5 {[%clk 0:00:50]} 37. Kf3 {[%clk 0:01:24]}  Bf6 {[%clk 0:00:48]} 38. g4 {[%clk 0:01:19]}  fxg4+ {[%clk 0:00:45]} 39. Kxg4 {[%clk 0:01:19]}  Kf8 {[%clk 0:00:43]} 40. Kf3 {[%clk 0:01:19]}  Bh4 {[%clk 0:00:42]} 41. Nd5 {[%clk 0:01:19]}  Ne6 {[%clk 0:00:40]} 42. Nxb6 {[%clk 0:01:18]}  Nd4+ {[%clk 0:00:40]} 43. Kg4 {[%clk 0:01:18]}  Bf2 {[%clk 0:00:40]} 44. Nd7+ {[%clk 0:01:18]}  Ke7 {[%clk 0:00:40]} 45. Nxe5+ {[%clk 0:01:18]}  Ke6 {[%clk 0:00:40]} 46. Nxg6 {[%clk 0:01:18]} 1-0


[Site "https://www.chess.com"]

[Event "Titled Tuesday Blitz September 27 Late 2022"]
[White "Naroditsky, Daniel"]
[Black "Svane, Rasmus"]
[WhiteFideId "2026961"]
[BlackFideId "4657101"]
[WhiteElo "2628"]
[BlackElo "2674"]
[Result "1-0"]
[Round "08"]
[TimeControl "180+1"]
[Date "2022.09.27"]
[WhiteClock "0:00:06"]
[BlackClock "0:00:04"]

1. e4 {[%clk 0:02:57]}  e5 {[%clk 0:02:56]} 2. Nf3 {[%clk 0:02:58]}  Nc6 {[%clk 0:02:57]} 3. Bb5 {[%clk 0:02:58]}  a6 {[%clk 0:02:56]} 4. Ba4 {[%clk 0:02:59]}  Nf6 {[%clk 0:02:56]} 5. O-O {[%clk 0:02:59]}  Be7 {[%clk 0:02:55]} 6. Re1 {[%clk 0:02:59]}  b5 {[%clk 0:02:55]} 7. Bb3 {[%clk 0:02:59]}  O-O {[%clk 0:02:55]} 8. a4 {[%clk 0:02:58]}  Bb7 {[%clk 0:02:55]} 9. d3 {[%clk 0:02:54]}  d6 {[%clk 0:02:55]} 10. Nc3 {[%clk 0:02:50]}  Na5 {[%clk 0:02:50]} 11. Ba2 {[%clk 0:02:49]}  b4 {[%clk 0:02:47]} 12. Ne2 {[%clk 0:02:49]}  c5 {[%clk 0:02:47]} 13. Ng3 {[%clk 0:02:43]}  Bc8 {[%clk 0:02:47]} 14. c3 {[%clk 0:02:32]}  Rb8 {[%clk 0:02:38]} 15. h3 {[%clk 0:02:23]}  b3 {[%clk 0:02:30]} 16. Bb1 {[%clk 0:02:22]}  Qc7 {[%clk 0:02:27]} 17. Nh4 {[%clk 0:02:11]}  g6 {[%clk 0:01:49]} 18. Bh6 {[%clk 0:02:07]}  Re8 {[%clk 0:01:49]} 19. Qf3 {[%clk 0:02:07]}  Qd8 {[%clk 0:01:39]} 20. Ngf5 {[%clk 0:01:50]}  Bf8 {[%clk 0:01:30]} 21. Bxf8 {[%clk 0:01:38]}  Rxf8 {[%clk 0:01:18]} 22. Ne3 {[%clk 0:01:38]}  Be6 {[%clk 0:01:14]} 23. Rd1 {[%clk 0:01:29]}  Nc6 {[%clk 0:00:55]} 24. Qe2 {[%clk 0:01:19]}  Nh5 {[%clk 0:00:55]} 25. Nf3 {[%clk 0:01:18]}  Qf6 {[%clk 0:00:52]} 26. Nd2 {[%clk 0:01:05]}  Qg5 {[%clk 0:00:43]} 27. Kh2 {[%clk 0:01:02]}  f5 {[%clk 0:00:39]} 28. Nec4 {[%clk 0:00:48]}  Nf4 {[%clk 0:00:34]} 29. Qf1 {[%clk 0:00:46]}  Qe7 {[%clk 0:00:28]} 30. a5 {[%clk 0:00:41]}  Kh8 {[%clk 0:00:25]} 31. Ra3 {[%clk 0:00:35]}  Bxc4 {[%clk 0:00:22]} 32. Nxc4 {[%clk 0:00:34]}  Ne6 {[%clk 0:00:16]} 33. Nb6 {[%clk 0:00:26]}  Nc7 {[%clk 0:00:13]} 34. Nc4 {[%clk 0:00:15]}  f4 {[%clk 0:00:13]} 35. Nd2 {[%clk 0:00:13]}  Nb5 {[%clk 0:00:13]} 36. Ra4 {[%clk 0:00:12]}  Nc7 {[%clk 0:00:12]} 37. Ra3 {[%clk 0:00:12]}  Qf7 {[%clk 0:00:12]} 38. Qe2 {[%clk 0:00:05]}  g5 {[%clk 0:00:12]} 39. Qg4 {[%clk 0:00:03]}  Ne6 {[%clk 0:00:08]} 40. Rxb3 {[%clk 0:00:02]}  Rxb3 {[%clk 0:00:08]} 41. Nxb3 {[%clk 0:00:03]}  Rb8 {[%clk 0:00:09]} 42. Ba2 {[%clk 0:00:03]}  Qf6 {[%clk 0:00:08]} 43. Nd2 {[%clk 0:00:03]}  Ncd8 {[%clk 0:00:06]} 44. Nc4 {[%clk 0:00:02]}  Qe7 {[%clk 0:00:06]} 45. Nb6 {[%clk 0:00:03]}  Rb7 {[%clk 0:00:03]} 46. Qf5 {[%clk 0:00:03]}  Kg7 {[%clk 0:00:03]} 47. Bd5 {[%clk 0:00:03]}  Rb8 {[%clk 0:00:02]} 48. Bc4 {[%clk 0:00:04]}  Qf7 {[%clk 0:00:03]} 49. Qxf7+ {[%clk 0:00:02]}  Kxf7 {[%clk 0:00:03]} 50. Bxa6 {[%clk 0:00:03]}  Nc6 {[%clk 0:00:04]} 51. Bc4 {[%clk 0:00:02]}  Nxa5 {[%clk 0:00:04]} 52. Ra1 {[%clk 0:00:02]}  Rxb6 {[%clk 0:00:04]} 53. Rxa5 {[%clk 0:00:03]}  Rxb2 {[%clk 0:00:04]} 54. Ra6 {[%clk 0:00:02]}  Ke7 {[%clk 0:00:04]} 55. Ra7+ {[%clk 0:00:02]}  Kf6 {[%clk 0:00:04]} 56. Rd7 {[%clk 0:00:03]}  Nf8 {[%clk 0:00:04]} 57. Rf7+ {[%clk 0:00:03]}  Kg6 {[%clk 0:00:04]} 58. Rxf8 {[%clk 0:00:04]}  Rxf2 {[%clk 0:00:04]} 59. Kg1 {[%clk 0:00:05]}  Rc2 {[%clk 0:00:04]} 60. Rd8 {[%clk 0:00:05]}  Kh5 {[%clk 0:00:04]} 61. Rxd6 {[%clk 0:00:06]}  Kh4 {[%clk 0:00:05]} 62. Kh2 {[%clk 0:00:06]}  f3 {[%clk 0:00:04]} 63. Rh6# {[%clk 0:00:06]} 1-0


[Site "https://www.chess.com"]

[Event "Titled Tuesday Blitz September 27 Late 2022"]
[White "Pakleza, Zbigniew"]
[Black "Aggelis, Nikolaos"]
[WhiteFideId "1119290"]
[BlackFideId "4213220"]
[WhiteElo "2411"]
[BlackElo "2154"]
[Result "1/2-1/2"]
[Round "08"]
[TimeControl "180+1"]
[Date "2022.09.28"]
[WhiteClock "0:00:05"]
[BlackClock "0:00:16"]

1. d4 {[%clk 0:03:00]}  d5 {[%clk 0:02:56]} 2. Bf4 {[%clk 0:03:00]}  c5 {[%clk 0:02:50]} 3. e3 {[%clk 0:02:59]}  Nc6 {[%clk 0:02:50]} 4. c3 {[%clk 0:02:59]}  Qb6 {[%clk 0:02:49]} 5. Qb3 {[%clk 0:02:58]}  c4 {[%clk 0:02:49]} 6. Qc2 {[%clk 0:02:59]}  Bf5 {[%clk 0:02:48]} 7. Qxf5 {[%clk 0:02:57]}  Qxb2 {[%clk 0:02:48]} 8. Qxd5 {[%clk 0:02:57]}  Qxa1 {[%clk 0:02:46]} 9. Qb5 {[%clk 0:02:57]}  O-O-O {[%clk 0:02:37]} 10. Bxc4 {[%clk 0:02:52]}  e5 {[%clk 0:02:31]} 11. Bxe5 {[%clk 0:02:06]}  Nxe5 {[%clk 0:02:30]} 12. dxe5 {[%clk 0:02:02]}  Ba3 {[%clk 0:02:27]} 13. Nf3 {[%clk 0:01:51]}  Qb2 {[%clk 0:02:27]} 14. Qxb2 {[%clk 0:01:49]}  Bxb2 {[%clk 0:02:28]} 15. Bxf7 {[%clk 0:01:45]}  Ne7 {[%clk 0:02:12]} 16. Ke2 {[%clk 0:01:41]}  Nd5 {[%clk 0:01:50]} 17. Rd1 {[%clk 0:01:19]}  Nb6 {[%clk 0:01:47]} 18. Nd4 {[%clk 0:01:17]}  Na4 {[%clk 0:01:45]} 19. Bb3 {[%clk 0:01:10]}  Nc5 {[%clk 0:01:43]} 20. Rd2 {[%clk 0:01:03]}  Ba1 {[%clk 0:01:42]} 21. f4 {[%clk 0:00:53]}  Kb8 {[%clk 0:01:41]} 22. f5 {[%clk 0:00:50]}  Ne4 {[%clk 0:01:25]} 23. Rd3 {[%clk 0:00:50]}  Rc8 {[%clk 0:01:21]} 24. c4 {[%clk 0:00:44]}  Nc5 {[%clk 0:01:17]} 25. Rd1 {[%clk 0:00:41]}  Rhe8 {[%clk 0:01:13]} 26. e6 {[%clk 0:00:40]}  Bxd4 {[%clk 0:01:10]} 27. exd4 {[%clk 0:00:37]}  Nxe6 {[%clk 0:01:11]} 28. fxe6 {[%clk 0:00:37]}  Rxe6+ {[%clk 0:01:12]} 29. Kd3 {[%clk 0:00:34]}  Rh6 {[%clk 0:00:57]} 30. h3 {[%clk 0:00:30]}  Rg6 {[%clk 0:00:58]} 31. g4 {[%clk 0:00:24]}  h5 {[%clk 0:00:56]} 32. Rg1 {[%clk 0:00:19]}  hxg4 {[%clk 0:00:56]} 33. Rxg4 {[%clk 0:00:17]}  Rh6 {[%clk 0:00:52]} 34. h4 {[%clk 0:00:17]}  Rch8 {[%clk 0:00:51]} 35. Rxg7 {[%clk 0:00:13]}  Rxh4 {[%clk 0:00:51]} 36. c5 {[%clk 0:00:13]}  Rd8 {[%clk 0:00:49]} 37. d5 {[%clk 0:00:11]}  Rh3+ {[%clk 0:00:45]} 38. Kc4 {[%clk 0:00:11]}  Rh4+ {[%clk 0:00:46]} 39. Kc3 {[%clk 0:00:10]}  Rh3+ {[%clk 0:00:45]} 40. Kb2 {[%clk 0:00:11]}  Rd3 {[%clk 0:00:41]} 41. d6 {[%clk 0:00:10]}  b6 {[%clk 0:00:38]} 42. cxb6 {[%clk 0:00:05]}  axb6 {[%clk 0:00:36]} 43. d7 {[%clk 0:00:05]}  R3xd7 {[%clk 0:00:35]} 44. Rxd7 {[%clk 0:00:05]}  Rxd7 {[%clk 0:00:35]} 45. Nc3 {[%clk 0:00:06]}  Rd4 {[%clk 0:00:28]} 46. Nb5 {[%clk 0:00:06]}  Rb4 {[%clk 0:00:27]} 47. Nd6 {[%clk 0:00:06]}  Kc7 {[%clk 0:00:22]} 48. Nc4 {[%clk 0:00:05]}  Rb5 {[%clk 0:00:20]} 49. Kc3 {[%clk 0:00:06]}  Rg5 {[%clk 0:00:20]} 50. Kb4 {[%clk 0:00:06]}  Rg4 {[%clk 0:00:20]} 51. a4 {[%clk 0:00:06]}  Rg5 {[%clk 0:00:20]} 52. Na3 {[%clk 0:00:06]}  Rg4+ {[%clk 0:00:20]} 53. Bc4 {[%clk 0:00:07]}  Rg5 {[%clk 0:00:20]} 54. Nb5+ {[%clk 0:00:08]}  Kb7 {[%clk 0:00:20]} 55. Nd6+ {[%clk 0:00:07]}  Ka7 {[%clk 0:00:20]} 56. Kb3 {[%clk 0:00:05]}  Rg3+ {[%clk 0:00:19]} 57. Kb4 {[%clk 0:00:06]}  Rg5 {[%clk 0:00:19]} 58. Bb3 {[%clk 0:00:05]}  Rg4+ {[%clk 0:00:18]} 59. Kc3 {[%clk 0:00:06]}  Rg5 {[%clk 0:00:18]} 60. Kd4 {[%clk 0:00:05]}  Rc5 {[%clk 0:00:18]} 61. Bd5 {[%clk 0:00:05]}  Rc1 {[%clk 0:00:17]} 62. Bc4 {[%clk 0:00:03]}  Rd1+ {[%clk 0:00:16]} 63. Ke5 {[%clk 0:00:04]}  Rd2 {[%clk 0:00:16]} 64. Bd5 {[%clk 0:00:03]}  Ka6 {[%clk 0:00:16]} 65. Bc4+ {[%clk 0:00:02]}  Ka5 {[%clk 0:00:15]} 66. Bb5 {[%clk 0:00:03]}  Ra2 {[%clk 0:00:14]} 67. Nb7+ {[%clk 0:00:02]}  Kb4 {[%clk 0:00:15]} 68. Kd6 {[%clk 0:00:03]}  Rxa4 {[%clk 0:00:15]} 69. Bxa4 {[%clk 0:00:03]}  Kxa4 {[%clk 0:00:16]} 70. Kc6 {[%clk 0:00:04]}  b5 {[%clk 0:00:16]} 71. Nc5+ {[%clk 0:00:05]}  Ka3 {[%clk 0:00:16]} 72. Kxb5 {[%clk 0:00:05]} 1/2-1/2


[Site "https://www.chess.com"]

[Event "Titled Tuesday Blitz September 27 Late 2022"]
[White "Przybylski, Wojciech"]
[Black "Salinas Herrera, Pablo"]
[WhiteFideId "1117599"]
[BlackFideId "3407128"]
[WhiteElo "2133"]
[BlackElo "2550"]
[Result "0-1"]
[Round "08"]
[TimeControl "180+1"]
[Date "2022.09.28"]
[WhiteClock "0:00:03"]
[BlackClock "0:00:09"]

1. e4 {[%clk 0:02:54]}  c5 {[%clk 0:02:59]} 2. Nf3 {[%clk 0:02:53]}  d6 {[%clk 0:02:59]} 3. Bb5+ {[%clk 0:02:52]}  Nd7 {[%clk 0:02:59]} 4. Ba4 {[%clk 0:02:51]}  g6 {[%clk 0:02:59]} 5. O-O {[%clk 0:02:51]}  Bg7 {[%clk 0:02:59]} 6. c3 {[%clk 0:02:51]}  Nf6 {[%clk 0:02:59]} 7. Re1 {[%clk 0:02:51]}  O-O {[%clk 0:02:59]} 8. h3 {[%clk 0:02:50]}  e5 {[%clk 0:02:59]} 9. d4 {[%clk 0:02:47]}  a6 {[%clk 0:02:59]} 10. dxe5 {[%clk 0:02:42]}  dxe5 {[%clk 0:02:58]} 11. Bg5 {[%clk 0:02:39]}  b5 {[%clk 0:02:57]} 12. Bc2 {[%clk 0:02:37]}  Bb7 {[%clk 0:02:57]} 13. c4 {[%clk 0:02:33]}  Qb6 {[%clk 0:02:42]} 14. Nc3 {[%clk 0:02:29]}  Rfe8 {[%clk 0:02:39]} 15. Nd5 {[%clk 0:02:23]}  Nxd5 {[%clk 0:02:39]} 16. cxd5 {[%clk 0:02:23]}  c4 {[%clk 0:02:12]} 17. Be3 {[%clk 0:02:19]}  Qd6 {[%clk 0:02:12]} 18. Nd2 {[%clk 0:02:15]}  Rac8 {[%clk 0:02:10]} 19. Qe2 {[%clk 0:02:13]}  h5 {[%clk 0:02:03]} 20. a4 {[%clk 0:02:08]}  Ra8 {[%clk 0:01:44]} 21. b3 {[%clk 0:01:26]}  c3 {[%clk 0:01:43]} 22. Nf3 {[%clk 0:01:25]}  b4 {[%clk 0:01:43]} 23. a5 {[%clk 0:01:23]}  f6 {[%clk 0:01:40]} 24. Ra4 {[%clk 0:01:02]}  Bf8 {[%clk 0:01:39]} 25. Nh4 {[%clk 0:00:54]}  Kf7 {[%clk 0:01:30]} 26. g4 {[%clk 0:00:53]}  Qc7 {[%clk 0:00:25]} 27. gxh5 {[%clk 0:00:49]}  g5 {[%clk 0:00:26]} 28. Nf5 {[%clk 0:00:49]}  Bd6 {[%clk 0:00:26]} 29. h6 {[%clk 0:00:48]}  Kg6 {[%clk 0:00:25]} 30. Bd1 {[%clk 0:00:45]}  Kh7 {[%clk 0:00:23]} 31. Qh5 {[%clk 0:00:44]}  Nf8 {[%clk 0:00:23]} 32. Bg4 {[%clk 0:00:38]}  Rad8 {[%clk 0:00:20]} 33. Ng7 {[%clk 0:00:32]}  Re7 {[%clk 0:00:16]} 34. Bf5+ {[%clk 0:00:31]}  Kh8 {[%clk 0:00:16]} 35. h4 {[%clk 0:00:28]}  Bc8 {[%clk 0:00:15]} 36. hxg5 {[%clk 0:00:28]}  fxg5 {[%clk 0:00:16]} 37. Bxg5 {[%clk 0:00:27]}  Nh7 {[%clk 0:00:12]} 38. Bh4 {[%clk 0:00:21]}  Rg8 {[%clk 0:00:12]} 39. Bxe7 {[%clk 0:00:17]}  Qxe7 {[%clk 0:00:12]} 40. Qg6 {[%clk 0:00:17]}  Bxf5 {[%clk 0:00:11]} 41. exf5 {[%clk 0:00:12]}  Qh4 {[%clk 0:00:11]} 42. Re3 {[%clk 0:00:02]}  e4 {[%clk 0:00:11]} 43. Kf1 {[%clk 0:00:03]}  Qh1+ {[%clk 0:00:12]} 44. Ke2 {[%clk 0:00:03]}  Qb1 {[%clk 0:00:12]} 45. Rxe4 {[%clk 0:00:02]}  Qxe4+ {[%clk 0:00:12]} 46. Kf1 {[%clk 0:00:03]}  Qh1+ {[%clk 0:00:12]} 47. Ke2 {[%clk 0:00:03]}  Qxd5 {[%clk 0:00:12]} 48. Ra1 {[%clk 0:00:02]}  Qe4+ {[%clk 0:00:10]} 49. Kf1 {[%clk 0:00:02]}  Qh1+ {[%clk 0:00:10]} 50. Ke2 {[%clk 0:00:03]}  Qxa1 {[%clk 0:00:11]} 51. f6 {[%clk 0:00:03]}  Qb2+ {[%clk 0:00:11]} 52. Kf3 {[%clk 0:00:03]}  c2 {[%clk 0:00:09]} 53. f7 {[%clk 0:00:03]}  Rf8 {[%clk 0:00:10]} 54. Ne6 {[%clk 0:00:02]}  Qf6+ {[%clk 0:00:08]} 55. Qxf6+ {[%clk 0:00:02]}  Nxf6 {[%clk 0:00:09]} 56. Nd4 {[%clk 0:00:02]}  c1=Q {[%clk 0:00:08]} 57. Nf5 {[%clk 0:00:03]}  Qf4+ {[%clk 0:00:08]} 58. Ke2 {[%clk 0:00:03]}  Qxf5 {[%clk 0:00:09]} 0-1


[Site "https://www.chess.com"]

[Event "Titled Tuesday Blitz September 27 Late 2022"]
[White "Rosen, Eric"]
[Black "Namitbir Singh Walia"]
[WhiteFideId "2032562"]
[BlackFideId "35071068"]
[WhiteElo "2362"]
[BlackElo "1664"]
[Result "1/2-1/2"]
[Round "08"]
[TimeControl "180+1"]
[Date "2022.09.28"]
[WhiteClock "0:00:03"]
[BlackClock "0:00:06"]

1. d4 {[%clk 0:02:45]}  d5 {[%clk 0:02:59]} 2. Bf4 {[%clk 0:02:45]}  Nf6 {[%clk 0:02:58]} 3. e3 {[%clk 0:02:45]}  c5 {[%clk 0:02:58]} 4. Nf3 {[%clk 0:02:45]}  Nc6 {[%clk 0:02:58]} 5. Nbd2 {[%clk 0:02:44]}  e6 {[%clk 0:02:54]} 6. c3 {[%clk 0:02:43]}  cxd4 {[%clk 0:02:53]} 7. exd4 {[%clk 0:02:40]}  Nh5 {[%clk 0:02:54]} 8. Be3 {[%clk 0:02:40]}  Bd6 {[%clk 0:02:53]} 9. Ne5 {[%clk 0:02:39]}  g6 {[%clk 0:02:50]} 10. g4 {[%clk 0:02:39]}  Ng7 {[%clk 0:02:46]} 11. h4 {[%clk 0:02:39]}  Nxe5 {[%clk 0:02:43]} 12. dxe5 {[%clk 0:02:39]}  Bxe5 {[%clk 0:02:44]} 13. h5 {[%clk 0:02:39]}  gxh5 {[%clk 0:02:32]} 14. gxh5 {[%clk 0:02:38]}  Nf5 {[%clk 0:02:32]} 15. Bf4 {[%clk 0:02:16]}  Bxf4 {[%clk 0:02:22]} 16. Qa4+ {[%clk 0:02:15]}  Bd7 {[%clk 0:02:22]} 17. Qxf4 {[%clk 0:02:15]}  Qb8 {[%clk 0:02:10]} 18. Qb4 {[%clk 0:02:03]}  Qe5+ {[%clk 0:02:03]} 19. Be2 {[%clk 0:02:03]}  O-O-O {[%clk 0:02:01]} 20. Nf3 {[%clk 0:01:07]}  Qd6 {[%clk 0:02:00]} 21. Qa5 {[%clk 0:00:52]}  Qb6 {[%clk 0:02:00]} 22. Qxb6 {[%clk 0:00:38]}  axb6 {[%clk 0:02:01]} 23. Ne5 {[%clk 0:00:39]}  Rhf8 {[%clk 0:01:57]} 24. O-O-O {[%clk 0:00:33]}  f6 {[%clk 0:01:54]} 25. Ng4 {[%clk 0:00:33]}  Nd6 {[%clk 0:01:48]} 26. f3 {[%clk 0:00:28]}  Bc6 {[%clk 0:01:40]} 27. Bd3 {[%clk 0:00:29]}  Rd7 {[%clk 0:01:33]} 28. Rde1 {[%clk 0:00:26]}  e5 {[%clk 0:01:31]} 29. Bc2 {[%clk 0:00:22]}  Re7 {[%clk 0:01:29]} 30. Rhf1 {[%clk 0:00:22]}  Nc4 {[%clk 0:01:23]} 31. Bf5+ {[%clk 0:00:19]}  Bd7 {[%clk 0:01:20]} 32. Nh6 {[%clk 0:00:18]}  Nd6 {[%clk 0:01:10]} 33. Bc2 {[%clk 0:00:14]}  Rg7 {[%clk 0:01:07]} 34. Rg1 {[%clk 0:00:15]}  Re7 {[%clk 0:00:59]} 35. b3 {[%clk 0:00:14]}  f5 {[%clk 0:00:56]} 36. Rd1 {[%clk 0:00:13]}  Bc6 {[%clk 0:00:54]} 37. Rg5 {[%clk 0:00:11]}  e4 {[%clk 0:00:53]} 38. f4 {[%clk 0:00:10]}  Re6 {[%clk 0:00:46]} 39. Ng8 {[%clk 0:00:07]}  Kc7 {[%clk 0:00:29]} 40. Rg7+ {[%clk 0:00:06]}  Rf7 {[%clk 0:00:26]} 41. Rdg1 {[%clk 0:00:05]}  Be8 {[%clk 0:00:21]} 42. Kd2 {[%clk 0:00:05]}  Kc6 {[%clk 0:00:19]} 43. h6 {[%clk 0:00:03]}  b5 {[%clk 0:00:17]} 44. a4 {[%clk 0:00:03]}  bxa4 {[%clk 0:00:16]} 45. bxa4 {[%clk 0:00:04]}  Kc5 {[%clk 0:00:17]} 46. Ke3 {[%clk 0:00:05]}  Nc4+ {[%clk 0:00:15]} 47. Ke2 {[%clk 0:00:05]}  Nd6 {[%clk 0:00:14]} 48. Bb3 {[%clk 0:00:04]}  b5 {[%clk 0:00:13]} 49. a5 {[%clk 0:00:05]}  Nc4 {[%clk 0:00:12]} 50. a6 {[%clk 0:00:05]}  Rxa6 {[%clk 0:00:12]} 51. Ne7 {[%clk 0:00:04]}  Ra3 {[%clk 0:00:09]} 52. Bd1 {[%clk 0:00:04]}  Rxc3 {[%clk 0:00:09]} 53. Rxf7 {[%clk 0:00:05]}  Bxf7 {[%clk 0:00:10]} 54. Nxf5 {[%clk 0:00:06]}  d4 {[%clk 0:00:09]} 55. Rg7 {[%clk 0:00:06]}  Bg6 {[%clk 0:00:09]} 56. Nh4 {[%clk 0:00:03]}  Re3+ {[%clk 0:00:08]} 57. Kf2 {[%clk 0:00:03]}  Rg3 {[%clk 0:00:07]} 58. Nxg6 {[%clk 0:00:03]}  Rxg6 {[%clk 0:00:07]} 59. Rxg6 {[%clk 0:00:03]}  e3+ {[%clk 0:00:07]} 60. Kf3 {[%clk 0:00:03]}  hxg6 {[%clk 0:00:07]} 61. h7 {[%clk 0:00:03]}  Nb2 {[%clk 0:00:05]} 62. h8=Q {[%clk 0:00:03]}  Nxd1 {[%clk 0:00:06]} 63. Qc8+ {[%clk 0:00:03]}  Kb4 {[%clk 0:00:06]} 64. Ke4 {[%clk 0:00:03]}  e2 {[%clk 0:00:06]} 65. Kxd4 {[%clk 0:00:02]}  e1=Q {[%clk 0:00:06]} 66. Qf8+ {[%clk 0:00:03]}  Kb3 {[%clk 0:00:05]} 67. Qg8+ {[%clk 0:00:03]}  Kb2 {[%clk 0:00:05]} 68. Kc5 {[%clk 0:00:03]}  Qc3+ {[%clk 0:00:05]} 69. Kb6 {[%clk 0:00:03]}  Qc4 {[%clk 0:00:05]} 70. Qg7+ {[%clk 0:00:03]}  Nc3 {[%clk 0:00:06]} 71. Qxg6 {[%clk 0:00:03]}  Qxf4 {[%clk 0:00:06]} 72. Kb7 {[%clk 0:00:02]}  Qe4+ {[%clk 0:00:06]} 73. Ka7 {[%clk 0:00:02]}  b4 {[%clk 0:00:07]} 74. Qb6 {[%clk 0:00:02]}  b3 {[%clk 0:00:06]} 75. Kb8 {[%clk 0:00:03]}  Qe8+ {[%clk 0:00:06]} 76. Ka7 {[%clk 0:00:03]}  Qa4+ {[%clk 0:00:05]} 77. Kb7 {[%clk 0:00:02]}  Qb5 {[%clk 0:00:05]} 78. Ka7 {[%clk 0:00:03]}  Qxb6+ {[%clk 0:00:05]} 79. Ka8 {[%clk 0:00:03]}  Kc2 {[%clk 0:00:06]} 1/2-1/2


[Site "https://www.chess.com"]